Cogmind - Beta 16 *** ADVENTURER MODE // 2025.11.11 @ 23:12:21 Player: TheChosenOne Result: Self-destructed Performance ------------- Evolutions (4) 2000 Regions Visited (5) 1000 Robots Destroyed (18) 90 Value Destroyed (704) 704 Prototype IDs (0) 0 Alien Tech Used (0) 0 Bonus (200) 200 TOTAL SCORE: 3994 Bonus ------- Pacifist 200 Cogmind --------- Core Integrity 815/850 Matter 4/300 Energy 500/500 System Corruption 0% Temperature Cool (0) Movement Rolling (101) Ox1 Location -6/Factory Parts ------- > --- POWER (2) -------- Angular Momentum Engine Angular Momentum Engine > --- PROPULSION (4) --- Wheel Wheel Armored Huge Wheel > --- UTILITY (6) ------ Large Storage Unit Improved Trap Scanner Hacking Suite Hacking Suite Hacking Suite Hacking Suite > --- WEAPON (3) ------- High-powered Shotgun Gauss Rifle Remote Datajack > --- INVENTORY (15) --- Nuclear Core Angular Momentum Engine Angular Momentum Engine Improved Heat Sink Disposable Heat Sink Advanced Terrain Scan Processor ECM Suite Hardened Medium Armor Plating Focal Shield Hacking Suite Lightning Gun Pulse Rifle Rocket Launcher Peak State ------------ > --- POWER ------------ Angular Momentum Engine Angular Momentum Engine > --- PROPULSION ------- Wheel Wheel Armored Huge Wheel > --- UTILITY ---------- Large Storage Unit Improved Trap Scanner Hacking Suite Hacking Suite Hacking Suite Hacking Suite > --- WEAPON ----------- High-powered Shotgun Gauss Rifle Remote Datajack > --- INVENTORY -------- Deuterium Engine Deuterium Engine Deuterium Engine Nuclear Core Angular Momentum Engine Improved Titanium Leg Improved Heat Sink Disposable Heat Sink Hardened Medium Armor Plating Hacking Suite Lightning Gun Beam Rifle Pulse Rifle Rocket Launcher [Rating: 53] Favorites ----------- Power Light Ion Engine Engine Light Ion Engine Power Core Nuclear Core Propulsion Wheel Leg Aluminum Leg Wheel Wheel Utility Hacking Suite Device Seismic Detector Storage Large Storage Unit Hackware Hacking Suite Weapon High-powered Shotgun Ballistic Gun High-powered Shotgun Special Weapon Remote Datajack Build | -11 -10 -9 -8 -7 -6 ------- Run | Yrd Mat Mat Mat Fac Fac Slots Evolved 8 | . . 2 2 2 2 Power 1 | . . . 1 . . Propulsion 2 | . . 1 . 1 . Utility 4 | . . 1 1 1 1 Weapon 1 | . . . . . 1 Parts Attached 35 | 6 6 4 7 7 5 Power 8 | 1 . . 3 2 2 Engine 7 | 1 . . 2 2 2 Core 1 | . . . 1 . . Reactor . | . . . . . . Propulsion 7 | 2 1 . 1 1 2 Treads . | . . . . . . Leg 1 | . . . 1 . . Wheel 6 | 2 1 . . 1 2 Hover . | . . . . . . Flight . | . . . . . . Utility 11 | 1 3 2 2 2 1 Device 3 | . 1 1 . . 1 Storage 4 | 1 2 . . 1 . Processor . | . . . . . . Hackware 4 | . . 1 2 1 . Protection . | . . . . . . Artifact . | . . . . . . Weapon 9 | 2 2 2 1 2 . Energy Gun . | . . . . . . Energy Cannon . | . . . . . . Ballistic Gun 8 | 2 2 2 1 1 . Ballistic Cannon . | . . . . . . Launcher . | . . . . . . Special Weapon 1 | . . . . 1 . Impact Weapon . | . . . . . . Slashing Weapon . | . . . . . . Piercing Weapon . | . . . . . . Special Melee Weapon . | . . . . . . Unidentified Prototypes . | . . . . . . Parts Lost 5 | . . . 5 . . Power 1 | . . . 1 . . Propulsion 2 | . . . 2 . . Utility 1 | . . . 1 . . Weapon 1 | . . . 1 . . Highest Loss Streak 4 | . . . 4 . . To Critical Strikes 1 | . . . 1 . . Average Backups 10 | . 3 8 11 13 13 Power 1 | . 1 1 . 2 2 Propulsion . | . . . . . . Utility 3 | . . . 4 3 5 Weapon 5 | . 2 7 6 6 4 Tool/Special . | . . . . . . Unused Backups 18 | . . . 3 . 15 Power 3 | . . . . . 3 Propulsion 1 | . . . . . 1 Utility 6 | . . . . . 6 Weapon 8 | . . . 3 . 5 Tool/Special . | . . . . . . Average Slot Usage (%) 90 | . 97 98 91 82 90 Engine 14 | . 14 11 16 12 13 Leg 1 | . . . 4 . . Wheel 21 | . 28 33 20 14 19 Device 5 | . 10 17 3 . 4 Storage 8 | . 14 11 9 7 6 Hackware 18 | . . 3 18 28 26 Ballistic Gun 17 | . 28 22 17 11 12 Special Weapon 1 | . . . . 3 6 Peak Build Rating 53 | 6 7 16 26 40 53 Average Rating 25 | 4 6 12 20 37 50 On Entrance 15 | . 6 7 16 24 40 Avg Prop Armor Cover (%) 4 | . . . 4 . . Naked Turns . | . . . . . . Heaviest Build 59 | 10 28 30 40 45 59 Greatest Support 48 | 32 32 42 42 38 48 Greatest Overweight (x) 3 | . 1 . 3 3 1 Average Overweight (x) . | . . . 1 1 . Largest Inventory Capacity 15 | 8 15 15 15 15 15 Average Capacity 14 | 6 14 15 15 15 15 Most Carried 15 | 1 7 15 15 15 15 Average Carried 10 | . 3 9 11 13 13 Final Capacity 15 | 8 15 15 15 15 15 Final Carried 15 | 1 7 14 10 15 13 Class Distribution -------------------- 64% | Hacker-Mutant 22% | Mutant 12% | Hacker-Skirmisher Dominant Class ---------------- Mutant | -10/Materials Mutant | -9/Materials Hacker-Mutant | -8/Materials Hacker-Mutant | -7/Factory Hacker-Skirmisher | -6/Factory Resources | -11 -10 -9 -8 -7 -6 ----------- Run | Yrd Mat Mat Mat Fac Fac Matter Collected 635 | 105 . 106 371 53 . Remotely . | . . . . . . Salvage Created 712 | . . 200 459 53 . Parts 38 | . . 13 22 3 . Haulers Intercepted . | . . . . . . Recyclers Shooed . | . . . . . . Parts Field Recycled . | . . . . . . Retrieved Matter . | . . . . . . Parts Self-Destructed . | . . . . . . Prevented . | . . . . . . Parts Restored . | . . . . . . Kills | -11 -10 -9 -8 -7 -6 ------- Run | Yrd Mat Mat Mat Fac Fac Combat Hostiles Destroyed 14 | . . 3 10 1 . Guns 14 | . . 3 10 1 . Classes Destroyed 8 | . . 3 3 2 . Worker 1 | . . . 1 . . Builder 1 | . . . . 1 . Mechanic 1 | . . 1 . . . Watcher 1 | . . . 1 . . Grunt 9 | . . 1 8 . . Sentry 3 | . . 2 1 . . Hunter 1 | . . . 1 . . Programmer 1 | . . . . 1 . Best Kill Streak 4 | . . 4 3 1 . Combat Bots Only 3 | . . 3 3 1 . Max Kills in Single Turn 1 | . . 1 1 1 . Gunslinging . | . . . . . . Exploded . | . . . . . . Melee . | . . . . . . Uniques/NPCs Destroyed . | . . . . . . Combat | -11 -10 -9 -8 -7 -6 -------- Run | Yrd Mat Mat Mat Fac Fac Hostile Shots Fired 133 | . . 20 70 14 29 Missed 36 | . . 6 20 2 8 Hits 97 | . . 14 50 12 21 Projectile 97 | . . 14 50 12 21 AOE 1 | . . . 1 . . Critical Strikes 2 | . . . 2 . . Damage Taken 1210 | . . 151 675 138 246 Core 173 | . . 24 114 . 35 Absorbed by Shields . | . . . . . . Ignored by Resistances 346 | . . 45 193 38 70 Regen/Repaired (Parts) 8 | . . . 8 . . Core Remaining (%) 94 | 100 100 94 79 100 . Volleys Fired 57 | 3 . 11 32 10 1 Largest 2 | 2 . 2 2 2 1 Hottest 53 | 40 . 40 50 53 5 Shots Fired 105 | 6 . 22 63 13 1 Gun 98 | 6 . 22 63 7 . Cannon . | . . . . . . Launcher . | . . . . . . Special 7 | . . . . 6 1 Kinetic 98 | 6 . 22 63 7 . Thermal . | . . . . . . Explosive . | . . . . . . Electromagnetic . | . . . . . . Robot Hit Streak 19 | 6 . 19 14 9 2 Robot Miss Streak 3 | . . 1 3 1 . Penetration Max . | . . . . . . Secondary Targets 1 | . . . 1 . . Max Gunslinging Chain 1 | . . . 1 . . Shots Hit Robots 88 | 6 . 20 51 10 1 Core Hits 43 | . . 8 32 3 . Critical Kills . | . . . . . . Critical Parts Destroyed 1 | . . . . 1 . Critical Strikes 1 | . . . . 1 . Destroy 1 | . . . . 1 . Melee Attacks . | . . . . . . Impact . | . . . . . . Slashing . | . . . . . . Piercing . | . . . . . . Sneak Attacks . | . . . . . . Combat Hostiles . | . . . . . . Follow-up Attacks . | . . . . . . Damage Inflicted 1385 | 53 . 244 958 130 . Guns 1379 | 53 . 244 952 130 . Cannons . | . . . . . . Explosions . | . . . . . . Melee . | . . . . . . Ramming 6 | . . . 6 . . Kinetic 1379 | 53 . 244 952 130 . Thermal . | . . . . . . Explosive . | . . . . . . Electromagnetic . | . . . . . . Impact . | . . . . . . Slashing . | . . . . . . Piercing . | . . . . . . Highest Corruption 4 | . . . . 4 . Average Corruption 3 | . . . . 3 . Corruption Purged . | . . . . . . Corruption Blocked . | . . . . . . Effects 5 | . . . . 5 . Message Errors 3 | . . . . 3 . Data Loss (minor) 1 | . . . . 1 . Misfires 1 | . . . . 1 . Overload Shots . | . . . . . . Overflow Damage . | . . . . . . Projectiles . | . . . . . . Explosions . | . . . . . . Melee . | . . . . . . Knockbacks . | . . . . . . Impact . | . . . . . . Kinetic . | . . . . . . Secondary . | . . . . . . Self-Inflicted Damage 3 | . . . 3 . . Shots . | . . . . . . Rammed 2 | . . . 1 1 . Targets Rammed 2 | . . . 1 1 . Kicked . | . . . . . . Crushed . | . . . . . . Highest Temperature 45 | . . . 45 . . Average Temperature 9 | . . . 9 . . Received Heat Transfer 441 | . . 69 372 . . Siege Activations . | . . . . . . Martial Activations . | . . . . . . Shielding Activations . | . . . . . . Robots Disrupted . | . . . . . . Combat Hostiles . | . . . . . . Robots Corrupted . | . . . . . . Combat Hostiles . | . . . . . . Parts Fried . | . . . . . . Impact Corruptions . | . . . . . . Robots Melted . | . . . . . . Combat Hostiles . | . . . . . . Parts Melted . | . . . . . . Heat Transferred . | . . . . . . Parts Sabotaged . | . . . . . . Parts Stolen . | . . . . . . Parts Stripped . | . . . . . . Power Chain Reactions . | . . . . . . Alert | -11 -10 -9 -8 -7 -6 ------- Run | Yrd Mat Mat Mat Fac Fac Maximum Alert Level . | . . . . . . Low Security (%) 100 | 100 100 100 100 100 100 Level 1 . | . . . . . . Level 2 . | . . . . . . Level 3 . | . . . . . . Level 4 . | . . . . . . Level 5 . | . . . . . . High Security . | . . . . . . Max Security . | . . . . . . Peak Influence 86 | . . 86 61 30 30 Initial 11 | . . . 11 7 . Average 9 | . . 36 13 1 3 Influence Increases 433 | . 3 102 248 35 45 Destroy 0b10 Robot/C 280 | . . 60 200 20 . Destroy 0b10 Robot/NC 20 | . . 5 10 5 . Destroy Leader 72 | . . 30 32 10 . Successful Hack 13 | . 3 6 4 . . Destroy Structure 3 | . . 1 2 . . Partial Spotted 15 | . . . . . 15 Lose Combat Pursuer 30 | . . . . . 30 Influence Decreases 413 | . 3 70 260 55 25 Entered New Map 34 | . . . 21 13 . Time Decay 336 | . . 70 199 42 25 Lost Part 40 | . . . 40 . . Purge Threat 3 | . 3 . . . . Squads Dispatched 6 | . . 1 1 2 2 Investigation 1 | . . . . . 1 Extermination 1 | . . . . 1 . Reinforcement 4 | . . 1 1 1 1 Assault . | . . . . . . Garrison . | . . . . . . Intercept . | . . . . . . Searches Triggered . | . . . . . . Construction Impeded . | . . . . . . Haulers Reinforced . | . . . . . . Active Scanning Responses . | . . . . . . Cargo Convoy Interrupts . | . . . . . . Stealth | -11 -10 -9 -8 -7 -6 --------- Run | Yrd Mat Mat Mat Fac Fac Distress Signals 2 | . . 2 . . . Communications Jammed . | . . . . . . Distress Signals . | . . . . . . Times Spotted 38 | . 2 5 17 6 8 Peak Tracking Total 5 | . 1 4 5 2 5 Tactical Retreats 1 | . . . . . 1 Traps | -11 -10 -9 -8 -7 -6 ------- Run | Yrd Mat Mat Mat Fac Fac Traps Triggered . | . . . . . . Indirectly . | . . . . . . Trap Hack Attempts . | . . . . . . Triggered . | . . . . . . Disarmed . | . . . . . . Reprogrammed . | . . . . . . Reused . | . . . . . . Traps Extracted . | . . . . . . Installed . | . . . . . . Triggered . | . . . . . . Machines | -11 -10 -9 -8 -7 -6 ---------- Run | Yrd Mat Mat Mat Fac Fac Machines Disabled . | . . . . . . Max in Single Turn . | . . . . . . Garrison Access 1 | . . . 1 . . Machines Repaired . | . . . . . . Machines Dismantled . | . . . . . . Machines Sabotaged . | . . . . . . Overloaded Fab Kills . | . . . . . . Hacking | -11 -10 -9 -8 -7 -6 --------- Run | Yrd Mat Mat Mat Fac Fac Machines Accessed 11 | . 2 1 4 2 2 Terminals 5 | . 2 . 2 1 . Fabricators 1 | . . . . . 1 Repair Stations 1 | . . . 1 . . Recycling Units 3 | . . 1 . 1 1 Scanalyzers . | . . . . . . Garrison Access 1 | . . . 1 . . Total Hacks 33 | . 8 4 10 6 5 Successful 21 | . 3 2 9 2 5 Failed 12 | . 5 2 1 4 . Catastrophic 2 | . 2 . . . . Database Lockouts . | . . . . . . Manual 12 | . 6 . 3 2 1 Terminals 18 | . 8 . 6 4 . Fabricators 1 | . . . . . 1 Repair Stations 2 | . . . 2 . . Recycling Units 10 | . . 4 . 2 4 Scanalyzers . | . . . . . . Garrison Access 2 | . . . 2 . . Terminal Hacks 9 | . 3 . 5 1 . Record 1 | . . . . 1 . Unreport Threat 1 | . 1 . . . . Locate Traps 3 | . 1 . 2 . . Hauler Manifests 1 | . . . 1 . . Zone Layout 3 | . 1 . 2 . . Fabricator Hacks 1 | . . . . . 1 Network Status 1 | . . . . . 1 Repair Station Hacks 2 | . . . 2 . . Scan Component 1 | . . . 1 . . Repair 1 | . . . 1 . . Recycling Unit Hacks 7 | . . 2 . 1 4 Recycle Component 3 | . . 1 . . 2 Process 2 | . . 1 . . 1 Report Inventory 1 | . . . . . 1 Retrieve Matter 1 | . . . . 1 . Scanalyzer . | . . . . . . Garrison Access Hacks 2 | . . . 2 . . Seal Access 1 | . . . 1 . . Coupler Status 1 | . . . 1 . . Unauthorized Hacks . | . . . . . . Terminals . | . . . . . . Fabricators . | . . . . . . Repair Stations . | . . . . . . Recycling Units . | . . . . . . Scanalyzers . | . . . . . . Garrison Access . | . . . . . . Data Cores Recovered . | . . . . . . Used . | . . . . . . Hacking Detections 9 | . 1 1 4 2 1 Full Trace Events 2 | . . 1 . . 1 Feedback Events . | . . . . . . Feedback Blocked . | . . . . . . Robot Schematics Acquired . | . . . . . . Robots Built . | . . . . . . Authchips . | . . . . . . Time . | . . . . . . Total Robot Build Rating . | . . . . . . Part Schematics Acquired . | . . . . . . Parts Built . | . . . . . . Authchips . | . . . . . . Time . | . . . . . . Total Part Build Rating . | . . . . . . Part Studies Acquired . | . . . . . . Parts Repaired 1 | . . . 1 . . Time 26 | . . . 26 . . Parts Recycled 3 | . . 1 . . 2 Recycled Matter 354 | . . 235 . . 119 Retrieved Matter . | . . . . . . Retrieved Components . | . . . . . . Parts Scanalyzed . | . . . . . . Part Schematics Acquired . | . . . . . . Parts Damaged . | . . . . . . Bothacking | -11 -10 -9 -8 -7 -6 ------------ Run | Yrd Mat Mat Mat Fac Fac Used RIF Installer . | . . . . . . Robots Hacked 4 | . . . . 3 1 Non-combat 3 | . . . . 2 1 Combat 1 | . . . . 1 . Robot Hacks Applied 4 | . . . . 3 1 parse_system 1 | . . . . 1 . no_distress 1 | . . . . 1 . find_recycling 1 | . . . . 1 . check_alert 1 | . . . . . 1 Relay Couplers Released . | . . . . . . Fabnet Peak Effective % . | . . . . . . Robots Rewired . | . . . . . . Allies Hacked . | . . . . . . Hacks Repelled . | . . . . . . Allies | -11 -10 -9 -8 -7 -6 -------- Run | Yrd Mat Mat Mat Fac Fac Total Allies . | . . . . . . Largest Group . | . . . . . . Highest-Rated Group . | . . . . . . Highest-Rated Ally . | . . . . . . Total Orders . | . . . . . . Ally Attacks . | . . . . . . Total Damage . | . . . . . . Kills . | . . . . . . Allies Corrupted . | . . . . . . Allies Melted . | . . . . . . Intel | -11 -10 -9 -8 -7 -6 ------- Run | Yrd Mat Mat Mat Fac Fac Active Infowar (turns) 1009 | . 230 215 311 . 253 Traps 253 | . . . . . 253 Seismic 756 | . 230 215 311 . . Robot Analysis Total . | . . . . . . Derelict Logs Recovered . | . . . . . . Drone Launches . | . . . . . . Drone Recoveries . | . . . . . . Exploration | -11 -10 -9 -8 -7 -6 ------------- Run | Yrd Mat Mat Mat Fac Fac Turns Passed 2222 | 80 291 215 753 580 303 Spaces Moved 1687 | 67 273 179 384 501 283 Core 9 | 9 . . . . . Treads . | . . . . . . Legs 85 | . . . 85 . . Wheels 1593 | 58 273 179 299 501 283 Hover . | . . . . . . Flight . | . . . . . . Fastest Speed 50 | 50 100 93 93 105 86 Average Speed 112 | 93 100 93 153 105 100 Slowest Speed 330 | 100 105 93 330 125 105 Overloaded Moves . | . . . . . . Propulsion Burnouts . | . . . . . . Robots Hopped . | . . . . . . Potential Cave-ins . | . . . . . . Cave-ins Triggered . | . . . . . . Exploration Rate (%) 17 | 3 40 17 24 13 8 Regions Visited 5 Branch Regions . Pre-discovered Areas . | . . . . . . Known Exits Taken . | . . . . . . Unknown Exits Taken 5 | 1 1 1 1 1 . Scrap Searched . | . . . . . . Spaces Dug . | . . . . . . Terrain Destroyed . | . . . . . . Melee . | . . . . . . Projectile . | . . . . . . AOE . | . . . . . . Terrain Rammed . | . . . . . . Walls Destroyed . | . . . . . . Machines Disabled . | . . . . . . Actions | -11 -10 -9 -8 -7 -6 --------- Run | Yrd Mat Mat Mat Fac Fac Total 1896 | 76 287 203 485 541 304 Wait 71 | . 4 2 51 13 1 Move 1682 | 66 272 178 383 500 283 Hop . | . . . . . . Pick Up 25 | 1 3 6 4 5 6 Fast Attach 16 | 6 3 2 3 1 1 Attach 9 | . . 1 4 2 2 Detach 1 | . . 1 . . . Swap 15 | . 3 2 1 6 3 Drop 18 | . 2 . 6 3 7 Fire 57 | 3 . 11 32 10 1 Melee . | . . . . . . Ram 2 | . . . 1 1 . Kick . | . . . . . . Crush . | . . . . . . Escape Stasis . | . . . . . . Rewire . | . . . . . . Trap . | . . . . . . Miscellaneous . | . . . . . . Route ------- -11/Scrapyard -10/Materials -9/Materials -8/Materials -7/Factory (discovered 2 exits: *Fac x2) -6/Factory History --------- Turn | Location | Event 40 | -11/Scrapyard | Discovered new exit (range 15) 81 | -11/Scrapyard | Entered Materials 303 | -10/Materials | Build established: Mutant 308 | -10/Materials | Discovered new exit (range 8) 372 | -10/Materials | Entered another Materials area 372 | -9/Materials | Evolved 2 slots: Propulsion x1, Utility x1 558 | -9/Materials | Discovered new exit (range 15) 587 | -9/Materials | Entered another Materials area 587 | -8/Materials | Evolved 2 slots: Power x1, Utility x1 658 | -8/Materials | Repaired Com. Wheel 811 | -8/Materials | Build established: Hacker-Mutant 981 | -8/Materials | Lost 4 parts (1p1n1u1w) 1305 | -8/Materials | Discovered new exit (range 16) 1340 | -8/Materials | Entered Factory 1340 | -7/Factory | Evolved 2 slots: Propulsion x1, Utility x1 1366 | -7/Factory | Discovered new exit (range 15) 1813 | -7/Factory | Discovered new exit (range 6) 1920 | -7/Factory | Entered another Factory area 1920 | -6/Factory | Evolved 2 slots: Utility x1, Weapon x1 2223 | -6/Factory | Self-destructed Last Messages --------------- Accepting Beam Rifle... >>Recycle(Imp. Titanium Leg) Accepting Imp. Titanium Leg... >>Recycling(Process) Analyzing inventory... Recycling at 100% efficiency: Beam Rifle (37) Imp. Titanium Leg (82) 02126_ ALERT: Suspicious activity at Recycling Unit F003. Dispatching Investigation squad. 02172_ Connecting with DSF Access... 02186_ O-24 Administrator: "IFF HANDSHAKE FAILED. SECURING TERMINAL." 02188_ ALERT: All DSF locations entering lockdown mode. 02189_ Jacked O-24 Administrator... >>check_alert Querying alert level: Low Security 02193_ ALERT: Hostiles spotted, dispatching reinforcements to Terminal F001. Map ----- +----------------------------------------------------+ | ????????????????????????????????????????????????# | | ????????????????????????????????????????????????# | | ????????????????????????????????????????????????# | | ????????????????????????????????????????????????# | | ????????????????????????????????????????????????# | | ????????????????????????????????????????????????# | | ? ??????????????????????????????? ??????????# | | ?????????????????????????????? ??????????# | | ????????????????????????????? ??????????# | | ?????????????# ?????????"" ??????????# | | ???????????? #? ?????? ??????????# | | ?????????????? # "?????""" ??????????+ | | ????????????? # ??????? ??????????# | | ????????????? +????????"" #?????????# | | ????????????? #????????? #?????????# | | #??????????????# #????????? #?????????# | | #??????????????# ###########+########### | | #??????????????# ^ | | #??????????????# | | #??????####????# ^ | | #???####T ###### ^ | | #???# ^ | | ""## #???# ##### s #######+#############+#### | | ???# ##### #???# s # # | | ???# #???# s # | | ???#########???##########@ """"""" # """ """ | | ????????????????????????# """"""" # """ """ "Y | | ????????????????????????# """"""" # """ """ "" | | ????????????????????????# """"""" ? | | ????????????????????????###########????########### | | | | | | | | | | | | | | | | | | | | | | | | | | | | | | | | | | | | | | | | | +----------------------------------------------------+ Best States ------------- Heat Dissipation 37 Coolant Potential 50 Energy Generation 31 Energy Capacity 500 Matter Stores 198 Matter Capacity 300 Sight Range 16 Terrain Scan Density 10 Resistance: KI 20 Resistance: TH 20 Resistance: EX 20 Resistance: EM 20 Resistance: I 20 Resistance: S 20 Resistance: P 20 Evasion (%) 42 Offensive Hacking 50 Item Schematics ----------------- None Robot Schematics ------------------ None Fabricated ------------ Nothing Repaired ---------- Com. Wheel | 73% | -8/Materials Studied --------- None Alien Tech Used ----------------- None Achievements -------------- None Challenges ------------ None Game ------ Seed VisualParticleStatue Manual? 0 Play Time 00:31:23 Cumulative 30.6 hours Start 2025.11.10 @ 15:37:38 End 2025.11.11 @ 23:12:21 Sessions 3 Manual Loads 0 Difficulty Adventurer Special Mode None Game No. 14 Rogue 3 Adventurer 11 Explorer 0 Win Type - Total 0 Types 0/0/0/0/0/0/0/0/0/0 Lore% 11 Gallery% 24 Achievement% 16 Wizard Run 0 Options --------- Layout 1 ASCII 0 Keyboard 0 Movement Arrows Keybinds 0 Fullscreen 1 Font 32/SmallcapsGlow Map View 50x35 Zoom Use 0% Tactical HUD 1 Map Filters NONE Filters NONE Steam 1 RUN: e461ad54-f55a-4f07-a779-bbb27d50ed29